bitfinex-derivatives/quotes_BTCF0:USTF0_20250919
["timestamp","ask_amount","ask_price","bid_price","bid_amount"]
[1758292369561,0.1218126,116350.0,116340.0,0.0001]
[1758292369761,0.12182,116340.0,116330.0,1.52208]
[1758292369979,1.59167186,116340.0,116330.0,1.52188]
[1758292370173,0.79203186,116340.0,116330.0,1.52188]
[1758292370472,1.60003629,116340.0,116330.0,1.52188]
[1758292370972,1.59987629,116340.0,116330.0,1.52188]
[1758292371370,0.80031629,116340.0,116330.0,1.52188]
[1758292371566,1.60091629,116340.0,116330.0,1.52488]
[1758292371766,0.80131629,116340.0,116330.0,1.52488]
[1758292371967,1.60071629,116340.0,116330.0,1.52488]
[1758292372477,1.60171629,116340.0,116330.0,1.52688]
[1758292372774,1.60171629,116340.0,116330.0,1.5954574]
[1758292372976,0.80231629,116340.0,116330.0,1.5954574]
[1758292373171,1.60147629,116340.0,116330.0,1.5954574]
[1758292373678,1.60147629,116340.0,116330.0,1.60408081]
[1758292374181,1.60127629,116340.0,116330.0,1.60408081]
[1758292374367,0.80231629,116340.0,116330.0,1.60408081]
[1758292374676,1.60115629,116340.0,116330.0,1.60408081]
[1758292374877,1.60115629,116340.0,116330.0,0.10408081]
[1758292375270,1.60115629,116340.0,116330.0,1.60408081]
[1758292375471,1.60107629,116340.0,116330.0,1.60408081]
[1758292376175,0.13210443,116340.0,116330.0,1.60408081]
[1758292376376,0.93066443,116340.0,116330.0,1.60408081]
[1758292376574,0.13210443,116340.0,116330.0,1.60408081]
[1758292376779,0.93078443,116340.0,116330.0,1.93918674]
[1758292377079,0.46721036,116340.0,116330.0,1.93918674]
[1758292377268,1.26581036,116340.0,116330.0,1.93918674]
[1758292377571,1.26577036,116340.0,116330.0,1.93918674]
[1758292378180,0.93066443,116340.0,116330.0,1.93918674]
[1758292378678,0.13210443,116340.0,116330.0,1.93918674]
[1758292378867,1.26553036,116340.0,116330.0,1.93918674]
[1758292380279,0.46721036,116340.0,116330.0,1.93918674]
[1758292380470,1.26525036,116340.0,116330.0,1.93918674]
[1758292380672,1.60035629,116340.0,116330.0,1.93918674]
[1758292382176,0.93014443,116340.0,116330.0,1.93918674]
[1758292382379,1.60035629,116340.0,116330.0,1.93918674]
[1758292383372,1.60035629,116340.0,116330.0,0.43918674]
[1758292386986,1.59919629,116340.0,116330.0,0.43918674]
[1758292388288,1.59919629,116340.0,116330.0,0.10408081]
[1758292388586,1.59919629,116340.0,116330.0,0.43918674]
[1758292388982,0.92898443,116340.0,116330.0,0.43918674]
[1758292389183,1.59919629,116340.0,116330.0,0.43918674]
[1758292389892,0.13210443,116340.0,116330.0,0.46488081]
[1758292390180,0.46721036,116340.0,116330.0,0.79998674]
[1758292390382,1.26349036,116340.0,116330.0,0.80866674]
[1758292390571,0.91482443,116340.0,116330.0,0.80866674]
[1758292390774,0.11854443,116340.0,116330.0,0.89458444]
[1758292390976,0.89239443,116340.0,116330.0,1.47969037]
[1758292391188,0.89231443,116340.0,116330.0,1.47969037]
[1758292392191,0.09619443,116340.0,116330.0,1.47969037]
[1758292392385,0.09619443,116340.0,116330.0,1.94054444]
[1758292392980,0.09619443,116340.0,116330.0,2.27565037]
[1758292394586,0.09619473,116340.0,116330.0,2.27565037]
[1758292394886,0.01028443,116340.0,116330.0,2.27565037]
[1758292396275,0.01028443,116340.0,116330.0,2.6107563]
[1758292396482,0.01028443,116340.0,116330.0,1.8147963]
[1758292396681,0.01028443,116340.0,116330.0,2.6101963]
[1758292396885,0.01028443,116340.0,116330.0,1.8147963]
[1758292397087,0.01028443,116340.0,116330.0,2.27501037]
[1758292398388,0.01028443,116340.0,116330.0,1.47969037]
[1758292398590,0.01028443,116340.0,116330.0,2.27473037]
[1758292398894,0.01028443,116340.0,116330.0,1.47969037]
[1758292399197,0.01028443,116340.0,116330.0,2.27461037]
[1758292399490,0.01028443,116340.0,116330.0,2.6097163]
[1758292399690,0.0018822,116340.0,116330.0,2.6097163]
[1758292400288,0.0018822,116340.0,116330.0,1.8147963]
[1758292400486,0.0018822,116340.0,116330.0,2.6096363]
[1758292400988,0.0018822,116340.0,116330.0,2.6094763]
[1758292401188,0.0018822,116340.0,116330.0,2.6093163]
[1758292401382,0.0018822,116340.0,116330.0,1.8147963]
[1758292401576,0.0018822,116340.0,116330.0,2.01519963]
[1758292401781,0.0018822,116340.0,116330.0,2.80967963]
[1758292402287,0.0018822,116340.0,116330.0,2.4745737]
[1758292402780,0.0001,116360.0,116350.0,0.1167229]
[1758292402981,0.0858929,116370.0,116360.0,0.1177156]
[1758292403181,0.0858929,116370.0,116360.0,1.14872746]
[1758292404288,0.0878929,116370.0,116360.0,1.14972746]
[1758292405394,0.0888929,116370.0,116360.0,1.15072746]
[1758292406282,0.0868929,116370.0,116360.0,1.14972746]
[1758292406481,0.0878929,116370.0,116360.0,1.15072746]
[1758292406886,0.1110029,116370.0,116360.0,0.39462]
[1758292407091,0.1248129,116370.0,116360.0,1.15072746]
[1758292407284,0.1110029,116370.0,116360.0,1.15072746]
[1758292409185,0.0878882,116370.0,116360.0,1.15072746]
[1758292409391,0.002,116370.0,116360.0,1.48583339]
[1758292409589,0.002,116370.0,116360.0,1.15072746]
[1758292410184,0.0878882,116370.0,116360.0,1.15072746]
[1758292410385,0.0878882,116370.0,116360.0,1.96423267]
[1758292410590,0.002,116370.0,116360.0,1.96423267]
[1758292415196,0.002,116370.0,116360.0,2.2993386]
[1758292415896,0.002,116370.0,116360.0,1.96373489]
[1758292416398,0.002,116370.0,116360.0,1.96277489]
[1758292417092,0.002,116370.0,116360.0,2.36698489]
[1758292418090,0.002,116370.0,116360.0,2.36682489]
[1758292418594,0.002,116370.0,116360.0,2.21261489]
[1758292419393,0.002,116370.0,116360.0,1.96261489]
[1758292419593,0.002,116370.0,116360.0,1.96257489]
[1758292420199,0.002,116370.0,116360.0,1.17029489]
[1758292420405,0.002,116370.0,116360.0,1.96249489]
[1758292420801,0.002,116370.0,116360.0,1.96241489]
[1758292420996,0.002,116370.0,116360.0,1.96229489]
[1758292426802,0.002,116370.0,116360.0,1.96173489]
[1758292427299,0.002,116370.0,116360.0,1.17029489]
[1758292427499,0.002,116370.0,116360.0,1.96137489]
[1758292428008,0.002,116370.0,116360.0,1.17029489]
[1758292428400,0.002,116370.0,116360.0,1.96137489]
[1758292429411,0.0878871,116370.0,116360.0,1.17029489]
[1758292429612,0.0878871,116370.0,116360.0,1.62651785]
[1758292430002,0.0878871,116370.0,116360.0,0.83543785]
[1758292430297,0.0878871,116370.0,116360.0,1.62651785]
[1758292433010,0.0878871,116370.0,116360.0,1.62647785]
[1758292437715,0.0878871,116370.0,116360.0,0.83543785]
[1758292437914,0.0878871,116370.0,116360.0,1.62643785]
[1758292439508,0.1110071,116370.0,116360.0,0.83543785]
[1758292439711,0.3610071,116370.0,116360.0,1.62643785]
[1758292441310,0.3378871,116370.0,116360.0,1.62643785]
[1758292442507,0.3610071,116370.0,116360.0,0.83543785]
[1758292442705,0.3744971,116370.0,116360.0,0.40497521]
[1758292442919,0.3744971,116370.0,116360.0,0.73983225]
[1758292443112,0.3744971,116370.0,116360.0,0.40497521]
[1758292444115,0.70935414,116370.0,116360.0,0.38286521]
[1758292444614,1.83517118,116370.0,116360.0,0.002]
[1758292444816,0.0993918,116350.0,116340.0,0.0416338]
[1758292445119,0.45736884,116350.0,116340.0,0.4024338]
[1758292445319,0.45736884,116350.0,116340.0,1.9024338]
[1758292445707,0.1225118,116350.0,116340.0,1.9024338]
[1758292446119,0.1235118,116350.0,116340.0,1.9054338]
[1758292446920,0.1245118,116350.0,116340.0,1.9074338]
[1758292450219,0.70936884,116350.0,116340.0,1.9074338]
[1758292450624,1.50040884,116350.0,116340.0,1.9074338]
[1758292450818,1.1655518,116350.0,116340.0,1.9074338]
[1758292451326,0.70936884,116350.0,116340.0,1.9074338]
[1758292451716,1.1655518,116350.0,116340.0,1.9074338]
[1758292452625,0.3745118,116350.0,116340.0,1.9074338]
[1758292452925,1.1655518,116350.0,116340.0,1.9074338]
[1758292453624,1.50040884,116350.0,116340.0,1.9074338]
[1758292453817,0.70936884,116350.0,116340.0,1.9074338]
[1758292454022,1.50040884,116350.0,116340.0,1.9074338]
[1758292454924,1.50044884,116350.0,116340.0,1.9074338]
[1758292455125,1.1655918,116350.0,116340.0,1.9074338]
[1758292456227,0.3745118,116350.0,116340.0,1.9074338]
[1758292456425,1.1655918,116350.0,116340.0,1.9074338]
[1758292456620,0.3745118,116350.0,116340.0,1.9074338]
[1758292456821,1.1655918,116350.0,116340.0,1.9074338]
[1758292457323,0.3745118,116350.0,116340.0,1.9074338]
[1758292457625,1.1655918,116350.0,116340.0,1.9074338]
[1758292458523,0.3745118,116350.0,116340.0,1.9074338]
[1758292458720,1.1655918,116350.0,116340.0,2.24229084]
[1758292458921,1.1655518,116350.0,116340.0,2.24229084]
[1758292460628,1.1655518,116350.0,116340.0,1.9074338]
[1758292460830,1.1655518,116350.0,116340.0,2.24229084]
[1758292461032,0.3745118,116350.0,116340.0,2.24229084]
[1758292461233,1.1655518,116350.0,116340.0,2.24229084]
[1758292461525,1.1655518,116350.0,116340.0,0.74229084]
[1758292461930,1.1655518,116350.0,116340.0,0.4074338]
[1758292462131,1.50040884,116350.0,116340.0,0.38759]
[1758292462434,1.50040884,116350.0,116340.0,0.005]
[1758292463333,0.70936884,116350.0,116340.0,0.005]
[1758292463635,1.50040884,116350.0,116340.0,0.02706]
[1758292464035,0.70936884,116350.0,116340.0,0.02706]
[1758292464234,1.50040884,116350.0,116340.0,0.02706]
[1758292465139,0.70936884,116350.0,116340.0,0.02706]
[1758292465637,1.50040884,116350.0,116340.0,0.02706]
[1758292467036,1.50005884,116350.0,116340.0,0.02706]
[1758292467639,0.70901884,116350.0,116340.0,0.02706]
[1758292467835,1.50005884,116350.0,116340.0,0.02706]
[1758292470041,1.50005884,116350.0,116340.0,0.005]
[1758292472954,1.50005884,116350.0,116340.0,0.02706]
[1758292473447,1.50005884,116350.0,116340.0,0.005]
[1758292474641,0.70901884,116350.0,116340.0,0.02706]
[1758292474944,1.50001884,116350.0,116340.0,0.02706]
[1758292475942,1.50035395,116350.0,116340.0,0.02706]
[1758292478039,1.50035395,116350.0,116340.0,0.005]
[1758292478546,1.8355461,116350.0,116340.0,0.005]
[1758292479241,1.5855461,116350.0,116340.0,0.005]
[1758292483349,1.5855461,116350.0,116340.0,0.02706]
[1758292483948,1.5855461,116350.0,116340.0,0.005]
[1758292485142,1.5854261,116350.0,116340.0,0.005]
[1758292485845,1.5854261,116350.0,116340.0,0.02706]
[1758292486446,1.5854261,116350.0,116340.0,0.005]
[1758292487847,1.5854261,116350.0,116340.0,0.02706]
[1758292488749,0.7945461,116350.0,116340.0,0.02706]
[1758292489049,1.5853861,116350.0,116340.0,0.02706]
[1758292489250,1.25015395,116350.0,116340.0,0.02706]
[1758292490745,1.25015395,116350.0,116340.0,0.005]
[1758292492552,1.25015395,116350.0,116340.0,0.02706]
[1758292493450,1.25015395,116350.0,116340.0,0.005]
[1758292493651,1.25015395,116350.0,116340.0,0.02735]
[1758292493851,1.25015395,116350.0,116340.0,0.005]
[1758292494852,1.25015395,116350.0,116340.0,0.02735]
[1758292495053,0.45935395,116350.0,116340.0,0.02735]
[1758292495351,1.5853061,116350.0,116340.0,0.005]
[1758292500051,0.7945461,116350.0,116340.0,0.005]
[1758292500456,1.5851861,116350.0,116340.0,0.005]
[1758292502550,1.5851861,116350.0,116340.0,0.0275]
[1758292502958,1.5851861,116350.0,116340.0,0.005]
[1758292503154,1.5851461,116350.0,116340.0,0.0275]
[1758292503955,0.45935395,116350.0,116340.0,0.3883]
[1758292504147,0.1108918,116350.0,116340.0,1.42627952]
[1758292504350,0.9014518,116350.0,116340.0,1.42627952]
[1758292504546,1.25017395,116350.0,116340.0,0.99323747]
[1758292505053,1.25017395,116350.0,116340.0,0.29724532]
[1758292505258,1.25017395,116350.0,116340.0,0.63243747]
[1758292505953,1.25017395,116350.0,116340.0,0.29724532]
[1758292506158,1.25017395,116350.0,116340.0,0.02474532]
[1758292506159,1.5853661,116350.0,116340.0,0.02474532]
[1758292506756,1.5853661,116350.0,116340.0,0.04724532]
[1758292507260,1.25017395,116350.0,116340.0,0.04724532]
[1758292510861,1.5853661,116350.0,116340.0,0.02474532]
[1758292512264,1.5853661,116350.0,116340.0,0.04724532]
[1758292512964,1.5853661,116350.0,116340.0,0.02474532]
[1758292514968,1.9461661,116350.0,116340.0,0.02474532]
[1758292515853,1.1556061,116350.0,116340.0,0.02474532]
[1758292516055,1.9459661,116350.0,116340.0,0.02474532]
[1758292517364,1.1556061,116350.0,116340.0,0.04724532]
[1758292517567,1.9459261,116350.0,116340.0,0.04724532]
[1758292517866,1.1556061,116350.0,116340.0,0.04724532]
[1758292518164,1.61073395,116350.0,116340.0,0.04724532]
[1758292518363,1.9459261,116350.0,116340.0,0.04724532]
[1758292518866,0.4852218,116350.0,116340.0,0.04724532]
[1758292519068,1.24989395,116350.0,116340.0,0.04724532]
[1758292519866,0.9147018,116350.0,116340.0,0.04724532]
[1758292520058,1.24989395,116350.0,116340.0,0.04724532]
[1758292520258,0.45961395,116350.0,116340.0,0.04724532]
[1758292520458,1.24989395,116350.0,116340.0,0.04724532]
[1758292521558,0.45961395,116350.0,116340.0,0.04724532]
[1758292521860,1.24985395,116350.0,116340.0,0.04724532]
[1758292523265,1.5850461,116350.0,116340.0,0.04724532]
[1758292526365,1.24985395,116350.0,116340.0,0.04724532]
[1758292527870,1.5850461,116350.0,116340.0,0.04724532]
[1758292528874,1.24985395,116350.0,116340.0,0.04724532]
[1758292530069,0.45961395,116350.0,116340.0,0.04724532]
[1758292530274,1.24973395,116350.0,116340.0,0.04724532]
[1758292531973,0.9145418,116350.0,116340.0,0.04724532]
[1758292532174,1.24973395,116350.0,116340.0,0.04724532]
[1758292535575,0.45961395,116350.0,116340.0,0.04724532]
[1758292535875,1.24961395,116350.0,116340.0,0.04724532]
[1758292537876,0.45960302,116350.0,116340.0,0.04724532]
[1758292538174,1.24956302,116350.0,116340.0,0.04724532]
[1758292540378,1.24956302,116350.0,116340.0,0.04589532]
[1758292543572,1.24948302,116350.0,116340.0,0.04589532]
[1758292544068,0.45960302,116350.0,116340.0,0.04589532]
[1758292544378,0.1244218,116350.0,116340.0,1.07778644]
[1758292544571,0.9142618,116350.0,116340.0,1.07778644]
[1758292544978,0.9142618,116350.0,116340.0,0.74260522]
[1758292545573,1.24944302,116350.0,116340.0,0.65669532]
[1758292546876,1.24944302,116350.0,116340.0,0.005]
[1758292552788,1.61024302,116350.0,116340.0,0.005]
[1758292557986,0.1218797,116340.0,116330.0,0.0687774]
[1758292558190,0.1218797,116340.0,116320.0,2.01501]
[1758292558191,0.085917,116330.0,116320.0,0.15441]
[1758292558391,1.60738822,116330.0,116320.0,0.15421]
[1758292558590,0.1218944,116320.0,116310.0,0.53561744]
[1758292558792,0.1218944,116320.0,116310.0,2.03541744]
[1758292558793,0.45707562,116320.0,116310.0,2.03541744]
[1758292558987,0.45707562,116320.0,116310.0,0.53541744]
[1758292559190,0.45707562,116320.0,116310.0,0.54407895]
[1758292559484,1.24655562,116320.0,116310.0,1.88120744]
[1758292560292,1.24655562,116320.0,116310.0,1.95084159]
[1758292561289,1.24755562,116320.0,116310.0,1.95284159]
[1758292561795,1.24855562,116320.0,116310.0,1.96149948]
[1758292562289,1.24855562,116320.0,116310.0,1.95284159]
[1758292562890,0.45907562,116320.0,116310.0,1.59204159]
[1758292563193,1.24851562,116320.0,116310.0,1.59204159]
[1758292563690,1.62651403,116320.0,116310.0,1.57163415]
[1758292563893,1.62651403,116320.0,116310.0,0.07163415]
[1758292565795,0.83707403,116320.0,116310.0,0.07163415]
[1758292565996,1.62651403,116320.0,116310.0,0.07163415]
[1758292566197,1.62651403,116320.0,116310.0,0.09393415]
[1758292566597,1.62651403,116320.0,116310.0,0.07163415]
[1758292566791,0.50189281,116320.0,116310.0,0.07163415]
[1758292566993,1.62651403,116320.0,116310.0,0.09393415]
[1758292567297,0.83707403,116320.0,116310.0,0.09393415]
[1758292567596,1.62651403,116320.0,116310.0,0.09393415]
[1758292568397,0.83707403,116320.0,116310.0,0.09393415]
[1758292568797,1.62651403,116320.0,116310.0,0.09393415]
[1758292569196,1.62651403,116320.0,116310.0,0.07163415]
[1758292569798,1.62651403,116320.0,116310.0,0.09393415]
[1758292569998,0.50189281,116320.0,116310.0,0.09393415]
[1758292570197,0.83707403,116320.0,116310.0,0.09393415]
[1758292570396,1.62651403,116320.0,116310.0,0.09393415]
[1758292572699,1.62651403,116320.0,116310.0,0.07163415]
[1758292573900,0.83707403,116320.0,116310.0,0.09393415]
[1758292574101,1.62647403,116320.0,116310.0,0.09393415]
[1758292574295,1.62647403,116320.0,116310.0,0.07163415]
[1758292579405,1.96165525,116320.0,116310.0,5e-08]
[1758292579797,1.96157525,116320.0,116310.0,5e-08]
[1758292582902,1.17225525,116320.0,116310.0,5e-08]
[1758292583107,1.96153525,116320.0,116310.0,5e-08]
[1758292584005,1.17225525,116320.0,116310.0,5e-08]
[1758292584200,1.96153525,116320.0,116310.0,5e-08]
[1758292587003,2.21153525,116320.0,116310.0,5e-08]
[1758292588005,1.42225525,116320.0,116310.0,5e-08]
[1758292588210,2.21145525,116320.0,116310.0,5e-08]
[1758292588404,1.42225525,116320.0,116310.0,5e-08]
[1758292588606,2.21145525,116320.0,116310.0,5e-08]
[1758292588806,2.21145525,116320.0,116310.0,0.00100005]
[1758292589211,2.21145525,116320.0,116310.0,5e-08]
[1758292589412,2.21045525,116320.0,116310.0,5e-08]
[1758292589712,2.21545525,116320.0,116310.0,5e-08]
[1758292590012,0.75589281,116320.0,116310.0,5e-08]
[1758292590210,1.54509281,116320.0,116310.0,5e-08]
[1758292590911,0.75589281,116320.0,116310.0,5e-08]
[1758292591114,0.50589281,116320.0,116310.0,0.02108005]
[1758292591414,1.29505281,116320.0,116310.0,0.02108005]
[1758292592212,1.63023403,116320.0,116310.0,5e-08]
[1758292596726,1.96541525,116320.0,116310.0,5e-08]
[1758292597121,1.96541525,116320.0,116300.0,0.03562682]
[1758292597317,0.0986995,116300.0,116290.0,1.5]
[1758292597620,1.22296072,116300.0,116290.0,1.5]
[1758292597824,1.91961738,116300.0,116290.0,1.5]
[1758292598020,1.93713935,116300.0,116290.0,1.5]
[1758292599123,1.93813935,116300.0,116290.0,1.5]
[1758292599310,1.93813935,116300.0,116290.0,1.50844889]
[1758292599819,1.94113935,116300.0,116290.0,1.51044889]
[1758292600326,2.27665829,116300.0,116290.0,1.502]
[1758292600624,1.94113935,116300.0,116290.0,1.502]
[1758292601415,1.94113935,116300.0,116290.0,1.57183853]
[1758292602616,1.94109935,116300.0,116290.0,1.57183853]
[1758292603429,1.94109935,116300.0,116290.0,1.5805143]
[1758292603820,1.15205935,116300.0,116290.0,1.5805143]
[1758292604123,1.94105935,116300.0,116290.0,1.5805143]
[1758292605221,1.15205935,116300.0,116290.0,1.5805143]
[1758292605630,1.94101935,116300.0,116290.0,1.5805143]
[1758292607028,1.94101935,116300.0,116290.0,1.57183853]
[1758292608317,1.96270935,116300.0,116290.0,0.07183853]
[1758292610425,1.96262935,116300.0,116290.0,0.07183853]
[1758292611736,1.17374935,116300.0,116290.0,0.07183853]
[1758292612028,1.96262935,116300.0,116290.0,0.07183853]
[1758292613727,1.17374935,116300.0,116290.0,0.07183853]
[1758292613936,1.96258935,116300.0,116290.0,0.09291853]
[1758292614235,1.96258935,116300.0,116290.0,0.07183853]
[1758292616135,1.17374935,116300.0,116290.0,0.07183853]
[1758292616335,1.96254935,116300.0,116290.0,0.07183853]
[1758292617528,1.17374935,116300.0,116290.0,0.07183853]
[1758292617733,1.96250935,116300.0,116290.0,0.09454853]
[1758292617933,1.17374935,116300.0,116290.0,0.09454853]
[1758292618140,1.96250935,116300.0,116290.0,0.09454853]
[1758292618338,1.17374935,116300.0,116290.0,0.09454853]
[1758292618640,1.96250935,116300.0,116290.0,0.09454853]
[1758292625038,1.17374935,116300.0,116290.0,0.43006747]
[1758292625343,1.60162935,116300.0,116290.0,0.43006747]
[1758292625937,1.60162935,116300.0,116290.0,0.09454853]
[1758292627647,1.60162935,116300.0,116290.0,0.07183853]
[1758292627852,1.60162935,116300.0,116290.0,0.09510853]
[1758292632548,1.60162935,116300.0,116290.0,0.07183853]
[1758292634260,1.60162935,116300.0,116290.0,0.09510853]
[1758292634556,1.60162935,116300.0,116290.0,0.07183853]
[1758292636256,1.60138935,116300.0,116290.0,0.09510853]
[1758292636455,1.60138935,116300.0,116290.0,0.07183853]
[1758292637949,0.93035147,116300.0,116290.0,0.09510853]
[1758292638250,1.60138935,116300.0,116290.0,0.09510853]
[1758292639548,1.60138935,116300.0,116290.0,0.07183853]
[1758292641143,1.96218935,116300.0,116290.0,0.07183853]
[1758292642756,1.17374935,116300.0,116290.0,0.09510853]
[1758292643056,1.29103147,116300.0,116290.0,0.09510853]
[1758292643352,1.17374935,116300.0,116290.0,0.09510853]
[1758292643553,1.96206935,116300.0,116290.0,0.09510853]
[1758292643739,1.96202935,116300.0,116290.0,0.09510853]
[1758292644454,1.29099147,116300.0,116290.0,0.09510853]
[1758292644652,1.17374935,116300.0,116290.0,0.09510853]
[1758292644856,1.96202935,116300.0,116290.0,0.09510853]
[1758292646655,1.96202935,116300.0,116290.0,0.07183853]
[1758292647057,1.96202935,116300.0,116290.0,0.09462853]
[1758292647257,1.96202935,116300.0,116290.0,0.07183853]
[1758292647955,2.29754829,116300.0,116290.0,0.07183853]
[1758292648652,1.96202935,116300.0,116290.0,0.07183853]
[1758292648957,1.96194935,116300.0,116290.0,0.07183853]
[1758292656263,1.17374935,116300.0,116290.0,0.07183853]
[1758292656461,1.96178935,116300.0,116290.0,0.09462853]
[1758292657060,1.17374935,116300.0,116290.0,0.09462853]
[1758292657360,1.96174935,116300.0,116290.0,0.09462853]
[1758292657862,1.62619082,116300.0,116290.0,0.09462853]
[1758292658760,0.83819082,116300.0,116290.0,0.09462853]
[1758292659162,1.62615082,116300.0,116290.0,0.09462853]
[1758292660060,0.83819082,116300.0,116290.0,0.09462853]
[1758292660255,1.62615082,116300.0,116290.0,0.09462853]
[1758292660560,1.62611082,116300.0,116290.0,0.09462853]
[1758292662355,0.83819082,116300.0,116290.0,0.09462853]
[1758292662555,1.62615082,116300.0,116290.0,0.09462853]
[1758292666352,1.62607082,116300.0,116290.0,0.09462853]
[1758292669364,0.47739082,116300.0,116290.0,0.09462853]
[1758292669562,0.14191147,116300.0,116290.0,1.04090788]
[1758292669768,0.12915147,116300.0,116290.0,1.05284788]
[1758292669959,0.91691147,116300.0,116290.0,1.05284788]
[1758292670869,0.12915147,116300.0,116290.0,1.13879468]
[1758292671164,0.91691147,116300.0,116290.0,1.13879468]
[1758292671556,0.12915147,116300.0,116290.0,1.13879468]
[1758292671767,0.89518147,116300.0,116290.0,1.13879468]
[1758292673868,0.89518147,116300.0,116290.0,1.29300468]
[1758292674366,0.8776595,116300.0,116290.0,1.29300468]
[1758292675877,0.0899395,116300.0,116290.0,1.29300468]
[1758292677976,0.0899395,116300.0,116290.0,1.13879468]
[1758292679577,0.0899394,116300.0,116290.0,1.29300468]
[1758292683482,0.0899394,116300.0,116290.0,2.08044468]
[1758292683881,0.0899394,116300.0,116290.0,2.10027228]
[1758292684082,0.0899394,116300.0,116290.0,1.31283228]
[1758292684678,0.1029294,116300.0,116290.0,1.30089228]
[1758292684880,0.1029294,116300.0,116290.0,1.21494548]
[1758292685283,0.43840875,116300.0,116290.0,1.21494548]
[1758292685482,0.46106875,116300.0,116290.0,0.87946613]
[1758292686180,0.46106875,116300.0,116290.0,0.72525613]
[1758292686379,0.46106875,116300.0,116290.0,0.47525613]
[1758292686793,0.71106875,116300.0,116290.0,0.47525613]
[1758292689882,1.49830875,116300.0,116290.0,0.47525613]
[1758292690683,1.49830875,116300.0,116290.0,0.09166613]
[1758292691185,1.49826875,116300.0,116290.0,0.11410613]
[1758292692788,1.49826875,116300.0,116290.0,0.09166613]
[1758292695287,0.71106875,116300.0,116290.0,0.11410613]
[1758292695488,1.49818875,116300.0,116290.0,0.11410613]
[1758292695692,0.71106875,116300.0,116290.0,0.11410613]
[1758292695888,1.49818875,116300.0,116290.0,0.11410613]
[1758292696089,1.49818875,116300.0,116290.0,0.09166613]
[1758292698091,0.71106875,116300.0,116290.0,0.09166613]
[1758292698289,1.49814875,116300.0,116290.0,0.11410613]
[1758292698992,1.49814875,116300.0,116290.0,0.09166613]
[1758292699492,0.71106875,116300.0,116290.0,0.11410613]
[1758292699691,1.49814875,116300.0,116290.0,0.11410613]
[1758292699885,0.71106875,116300.0,116290.0,0.11410613]
[1758292700290,1.49810875,116300.0,116290.0,0.11410613]
[1758292702194,1.49810875,116300.0,116290.0,0.09166613]
[1758292702489,0.71106875,116300.0,116290.0,0.09166613]
[1758292702795,1.49806875,116300.0,116290.0,0.11410613]
[1758292704387,0.71106875,116300.0,116290.0,0.11410613]
[1758292704593,1.49806875,116300.0,116290.0,0.11410613]
[1758292706289,1.49802875,116300.0,116290.0,0.11410613]
[1758292709096,1.49802875,116300.0,116290.0,0.09166613]
[1758292710091,1.24802875,116300.0,116290.0,0.09166613]
[1758292713999,1.24802875,116300.0,116290.0,0.07183853]
[1758292715498,0.46106875,116300.0,116290.0,0.07183853]
[1758292715699,1.24782875,116300.0,116290.0,0.07183853]
[1758292717198,1.60862875,116300.0,116290.0,0.07183853]
[1758292717399,1.2731494,116300.0,116290.0,0.07183853]
[1758292717600,1.60862875,116300.0,116290.0,0.07183853]
[1758292717800,0.82186875,116300.0,116290.0,0.07183853]
[1758292718200,1.60858875,116300.0,116290.0,0.07183853]
[1758292719790,0.1215761,116290.0,116280.0,0.0001]
[1758292719995,0.0995835,116280.0,116270.0,1.8609]
[1758292720195,1.55743516,116280.0,116270.0,1.8608]
[1758292721002,1.55743516,116280.0,116270.0,1.86944534]
[1758292721986,1.55843516,116280.0,116270.0,1.86944534]
[1758292722995,1.56043516,116280.0,116270.0,1.87844534]
[1758292723701,1.56143516,116280.0,116270.0,1.87144534]
[1758292724003,1.58243516,116280.0,116270.0,0.07932002]
[1758292724315,1.58343516,116280.0,116270.0,0.07932002]
[1758292724498,0.79675516,116280.0,116270.0,0.07932002]
[1758292724693,1.58339516,116280.0,116270.0,0.07932002]
[1758292726503,1.58335516,116280.0,116270.0,0.07932002]
[1758292726705,1.58335516,116280.0,116270.0,0.10080002]
[1758292727405,1.60109058,116280.0,116270.0,0.10080002]
[1758292728001,1.60109058,116280.0,116270.0,0.07932002]
[1758292728209,0.81449058,116280.0,116270.0,0.07932002]
[1758292728808,1.60109058,116280.0,116270.0,0.07932002]
[1758292730407,1.60105058,116280.0,116270.0,0.07932002]
[1758292730703,1.60105058,116280.0,116270.0,0.07067468]
[1758292733202,1.60101058,116280.0,116270.0,0.07067468]
[1758292734611,1.93659641,116280.0,116270.0,0.07067468]
[1758292734908,1.60101058,116280.0,116270.0,0.07067468]
[1758292735106,1.93659641,116280.0,116270.0,0.07067468]
[1758292735306,1.60101058,116280.0,116270.0,0.07067468]
[1758292735807,0.81449058,116280.0,116270.0,0.07067468]
[1758292736106,1.93655641,116280.0,116270.0,0.07067468]
[1758292736514,2.29735641,116280.0,116270.0,0.07067468]
[1758292736700,1.96177058,116280.0,116270.0,0.07067468]
[1758292736900,1.17529058,116280.0,116270.0,0.07067468]
[1758292737102,1.96177058,116280.0,116270.0,0.07067468]
[1758292737706,2.29735641,116280.0,116270.0,8e-08]
[1758292737909,0.1217309,116270.0,116260.0,0.36947673]
[1758292738107,0.79290256,116270.0,116260.0,0.36937673]
[1758292739212,0.79390256,116270.0,116260.0,0.36937673]
[1758292739514,0.79390256,116270.0,116260.0,0.39071673]
[1758292740110,1.58034256,116270.0,116260.0,0.39071673]
[1758292740913,1.24471673,116270.0,116260.0,0.39071673]
[1758292741099,1.24671673,116270.0,116260.0,0.39371673]
[1758292742020,0.9131309,116270.0,116260.0,0.39271673]
[1758292742208,1.24871673,116270.0,116260.0,0.39271673]
[1758292742708,0.46231673,116270.0,116260.0,0.46080589]
[1758292743015,1.24871673,116270.0,116260.0,0.46080589]
[1758292743507,0.46231673,116270.0,116260.0,0.46080589]
[1758292743707,1.24867673,116270.0,116260.0,0.46080589]
[1758292743908,1.24863673,116270.0,116260.0,0.46080589]
[1758292744521,0.46231673,116270.0,116260.0,0.46080589]
[1758292745117,1.24863673,116270.0,116260.0,0.46080589]
[1758292746933,0.46231673,116270.0,116260.0,0.79639172]
[1758292747127,0.46231673,116270.0,116260.0,0.46080589]
[1758292747428,0.1267309,116270.0,116260.0,0.79639172]
[1758292747634,0.9130109,116270.0,116260.0,1.46794585]
[1758292747829,0.9129709,116270.0,116260.0,1.46794585]
[1758292748532,1.24855673,116270.0,116260.0,1.47988585]
[1758292748832,0.9129709,116270.0,116260.0,1.13236002]
[1758292749029,0.46231673,116270.0,116260.0,1.13236002]
[1758292749332,1.24855673,116270.0,116260.0,1.13236002]
[1758292753230,1.24855673,116270.0,116260.0,0.79677419]
[1758292753633,1.24855673,116270.0,116260.0,1.13236002]
[1758292754834,1.24855673,116270.0,116260.0,1.04639172]
[1758292756637,1.24855673,116270.0,116260.0,0.71080589]
[1758292756838,1.24855673,116270.0,116260.0,1.04639172]
[1758292757338,1.24855673,116270.0,116260.0,1.13236022]
[1758292758139,1.24855673,116270.0,116260.0,1.46794605]
[1758292758539,1.24855673,116270.0,116260.0,1.13236022]